bitfinex/quotes_BTCUSD_20241004
["timestamp","ask_amount","ask_price","bid_price","bid_amount"]
[1728030918809,0.00182,61715.0,61714.0,0.162037]
[1728030919049,0.00382,61715.0,61714.0,0.162037]
[1728030919282,0.00382,61715.0,61713.0,0.162039]
[1728030919508,0.00382,61715.0,61714.0,0.162037]
[1728030920666,0.00282,61715.0,61714.0,0.162037]
[1728030921122,0.00382,61715.0,61714.0,0.162037]
[1728030921583,0.00282,61715.0,61714.0,0.162037]
[1728030921820,0.00082,61715.0,61714.0,0.163037]
[1728030922301,0.00082,61715.0,61714.0,0.162037]
[1728030922555,0.00082,61715.0,61714.0,0.165037]
[1728030922787,0.00082,61715.0,61714.0,0.167037]
[1728030924240,0.00082,61715.0,61714.0,0.005]
[1728030924475,0.00082,61715.0,61714.0,0.167037]
[1728030925169,0.02622281,61715.0,61714.0,0.005]
[1728030925383,0.02622281,61715.0,61714.0,0.164037]
[1728030925599,0.02622281,61715.0,61714.0,0.002]
[1728030925816,0.02622281,61715.0,61714.0,0.164037]
[1728030926089,0.02622281,61715.0,61714.0,0.165037]
[1728030926567,0.02622281,61715.0,61714.0,0.003]
[1728030926798,0.02622281,61715.0,61714.0,0.165037]
[1728030927025,0.02622281,61715.0,61714.0,0.003]
[1728030927467,0.00082,61715.0,61714.0,0.165037]
[1728030928114,0.00082,61715.0,61714.0,0.163037]
[1728030928337,0.00082,61715.0,61714.0,0.162037]
[1728030928579,0.00482,61715.0,61714.0,0.162037]
[1728030928770,0.00682,61715.0,61714.0,0.162037]
[1728030929233,0.00482,61715.0,61714.0,0.162037]
[1728030930437,0.07672913,61722.0,61710.0,0.24350847]
[1728030930649,0.07672913,61722.0,61721.0,0.162019]
[1728030931524,0.08472913,61722.0,61721.0,0.16737189]
[1728030931741,0.09572913,61722.0,61721.0,0.16737189]
[1728030931961,0.07672913,61722.0,61721.0,0.16737189]
[1728030932207,0.08672913,61722.0,61721.0,0.16837189]
[1728030932465,0.09472913,61722.0,61721.0,0.16937189]
[1728030933561,0.018,61722.0,61721.0,0.16937189]
[1728030935172,0.04937641,61726.0,61725.0,0.162008]
[1728030935610,0.04937641,61726.0,61725.0,0.16735997]
[1728030937017,0.05437641,61726.0,61725.0,0.16735997]
[1728030937508,0.05437641,61726.0,61725.0,0.16835997]
[1728030937509,0.012819,61726.0,61725.0,0.16835997]
[1728030939609,0.06140462,61726.0,61725.0,0.16835997]
[1728030939871,0.06140462,61726.0,61725.0,0.00635197]
[1728030940103,0.06140462,61726.0,61725.0,0.163008]
[1728030940328,0.012819,61726.0,61725.0,0.163008]
[1728030940571,0.03821884,61726.0,61725.0,0.16835997]
[1728030941253,0.11108755,61726.0,61725.0,0.16835997]
[1728030941513,0.11108755,61726.0,61725.0,0.41186844]
[1728030941749,0.012819,61726.0,61725.0,0.16835997]
[1728030942877,0.007819,61726.0,61725.0,0.16835997]
[1728030943098,0.007819,61726.0,61725.0,0.17135997]
[1728030943320,0.000819,61726.0,61725.0,0.17035997]
[1728030943771,0.000819,61726.0,61725.0,0.17235997]
[1728030944920,0.02621649,61726.0,61725.0,0.17235997]
[1728030947592,0.000819,61726.0,61725.0,0.17235997]
[1728030950732,0.02621733,61726.0,61725.0,0.17235997]
[1728030956549,0.000819,61726.0,61725.0,0.17235997]
[1728030961919,0.02621717,61726.0,61725.0,0.17235997]
[1728030963223,0.000819,61726.0,61725.0,0.17235997]
[1728030971902,0.000819,61726.0,61725.0,0.31828363]
[1728030972141,0.000819,61726.0,61725.0,0.80117881]
[1728030972386,0.000819,61726.0,61725.0,0.65457034]
[1728030974231,0.000819,61726.0,61725.0,0.75457034]
[1728030974477,0.000819,61726.0,61725.0,0.75157034]
[1728030974725,0.000819,61726.0,61725.0,0.76357034]
[1728030975135,0.000819,61726.0,61725.0,0.75157034]
[1728030975360,0.000819,61726.0,61725.0,0.74957034]
[1728030975603,0.000819,61726.0,61725.0,0.77757034]
[1728030976098,0.000819,61726.0,61725.0,0.76357034]
[1728030976339,0.000819,61726.0,61725.0,0.77757034]
[1728030976556,0.000819,61726.0,61725.0,0.76357034]
[1728030976772,0.000819,61726.0,61725.0,0.77757034]
[1728030977207,0.000819,61726.0,61725.0,0.74957034]
[1728030977453,0.000819,61726.0,61725.0,0.76357034]
[1728030978285,0.000819,61726.0,61725.0,0.76557034]
[1728030978511,0.000819,61726.0,61725.0,0.77957034]
[1728030978726,0.000819,61726.0,61725.0,0.77757034]
[1728030979588,0.000819,61726.0,61725.0,0.77957034]
[1728030979805,0.000819,61726.0,61725.0,0.77757034]
[1728030980493,0.000819,61726.0,61725.0,0.76357034]
[1728030980956,0.000819,61726.0,61725.0,0.77757034]
[1728030981443,0.000819,61726.0,61725.0,0.74957034]
[1728030981721,0.00164,61729.0,61725.0,0.74957034]
[1728030981722,0.00164,61729.0,61728.0,0.023]
[1728030981947,0.22721734,61740.0,61739.0,0.38399566]
[1728030982196,0.22721734,61740.0,61739.0,0.261072]
[1728030982413,0.00193446,61750.0,61745.0,0.161956]
[1728030982664,0.091319,61746.0,61745.0,0.161956]
[1728030982912,0.091319,61746.0,61745.0,0.16725756]
[1728030984556,0.000819,61746.0,61745.0,0.16725756]
[1728030984772,0.005819,61746.0,61745.0,0.16725756]
[1728030985255,0.011819,61746.0,61745.0,0.16825756]
[1728030986707,0.01823275,61752.0,61751.0,0.16194]
[1728030987136,0.01823275,61752.0,61751.0,0.16682237]
[1728030988137,0.02323275,61752.0,61751.0,0.16782237]
[1728030988391,0.02923275,61752.0,61751.0,0.16882237]
[1728030988640,0.02423275,61752.0,61751.0,0.16682237]
[1728030988889,0.02423275,61752.0,61751.0,0.16782237]
[1728030989361,0.01823275,61752.0,61751.0,0.16682237]
[1728030989601,0.01823275,61752.0,61751.0,0.17082237]
[1728030990108,0.01923275,61752.0,61751.0,0.16782237]
[1728030990588,0.01823275,61752.0,61751.0,0.16682237]
[1728030990813,0.01823275,61752.0,61751.0,0.17982237]
[1728030991554,0.00079413,61752.0,61751.0,0.54640908]
[1728030991785,0.00079413,61752.0,61751.0,0.54340908]
[1728030992033,0.00079413,61752.0,61751.0,0.55540908]
[1728030992251,0.00079413,61752.0,61751.0,0.54340908]
[1728030992472,0.00079413,61752.0,61751.0,0.55740908]
[1728030992922,0.00079413,61752.0,61751.0,0.54440908]
[1728030993155,0.00079413,61752.0,61751.0,0.55840908]
[1728030993879,0.00161313,61752.0,61751.0,0.55840908]
[1728030998564,0.00161313,61752.0,61751.0,0.65410908]
[1728030998808,0.02161311,61754.0,61753.0,0.47209691]
[1728030999043,0.02161311,61754.0,61753.0,0.63528362]
[1728030999285,0.02161311,61754.0,61753.0,0.64013814]
[1728030999528,0.02161311,61754.0,61753.0,0.64213814]
[1728030999985,0.02161311,61754.0,61753.0,0.65213814]
[1728031001121,0.02161311,61754.0,61753.0,0.66413814]
[1728031005659,0.02161311,61754.0,61753.0,0.59974295]
[1728031005886,0.02161311,61754.0,61753.0,0.19078952]
[1728031006328,0.02243211,61754.0,61753.0,0.19078952]
[1728031009283,0.02243211,61754.0,61753.0,0.17878952]
[1728031009527,0.02243211,61754.0,61753.0,0.18278952]
[1728031010177,0.02243211,61754.0,61753.0,0.17078952]
[1728031010478,0.02243211,61754.0,61753.0,0.16678952]
[1728031010930,0.02243211,61754.0,61753.0,0.17078952]
[1728031011158,0.02243211,61754.0,61753.0,0.17778952]
[1728031011610,0.02243211,61754.0,61753.0,0.20078952]
[1728031012040,0.02243211,61754.0,61753.0,0.19678952]
[1728031012472,0.02243211,61754.0,61753.0,0.20378952]
[1728031013175,0.02235209,61754.0,61753.0,0.20378952]
[1728031016150,0.00568498,61754.0,61753.0,0.20378952]
[1728031017760,0.00568498,61754.0,61753.0,0.36697623]
[1728031017977,0.00568498,61754.0,61753.0,0.36861423]
[1728031021057,0.00568498,61754.0,61753.0,0.20542752]
[1728031021738,0.03106926,61754.0,61753.0,0.20542752]
[1728031022263,0.00568498,61754.0,61753.0,0.20542752]
[1728031023870,0.00568498,61754.0,61753.0,0.18242752]
[1728031024631,0.09648498,61754.0,61753.0,0.18242752]
[1728031025543,0.09648498,61754.0,61753.0,0.17542752]
[1728031026598,0.09648498,61754.0,61753.0,0.01549252]
[1728031026599,0.34021698,61754.0,61753.0,0.01549252]
[1728031026822,0.22678253,61754.0,61753.0,0.00849252]
[1728031027011,0.17828498,61754.0,61753.0,0.003638]
[1728031027279,0.17828498,61754.0,61753.0,0.00748438]
[1728031027280,0.22680956,61754.0,61753.0,0.00748438]
[1728031027500,0.41296331,61754.0,61753.0,0.001638]
[1728031028259,0.34221698,61754.0,61753.0,0.002638]
[1728031028485,0.52930832,61754.0,61753.0,0.002638]
[1728031028705,0.52730832,61754.0,61753.0,0.001638]
[1728031029187,0.64964658,61754.0,61753.0,0.001638]
[1728031029404,0.339538,61752.0,61751.0,0.001638]
[1728031029624,0.43660047,61752.0,61751.0,0.001638]
[1728031030120,0.46199036,61752.0,61751.0,0.001638]
[1728031030357,0.43660047,61752.0,61751.0,0.001638]
[1728031030810,0.41432234,61752.0,61751.0,0.001638]
[1728031031065,0.25238434,61752.0,61751.0,0.00771863]
[1728031031304,0.1796,61752.0,61751.0,0.001638]
[1728031031794,0.1796,61752.0,61751.0,0.00771989]
[1728031032038,0.341538,61752.0,61751.0,0.001638]
[1728031032266,0.3910464,61752.0,61751.0,0.001638]
[1728031032500,0.39104788,61752.0,61751.0,0.001638]
[1728031032713,0.342538,61752.0,61751.0,0.001638]
[1728031033141,0.3679275,61752.0,61751.0,0.001638]
[1728031037360,0.44068007,61752.0,61751.0,0.001638]
[1728031038486,0.44063042,61752.0,61751.0,0.001638]
[1728031039182,0.3679275,61752.0,61751.0,0.001638]
[1728031039421,0.46370954,61752.0,61751.0,0.001638]
[1728031039875,0.46170954,61752.0,61751.0,0.001638]
[1728031040118,0.46270954,61752.0,61751.0,0.001638]
[1728031040362,0.341538,61752.0,61751.0,0.002638]
[1728031040582,0.41321799,61752.0,61751.0,0.001638]
[1728031040828,0.41421799,61752.0,61751.0,0.002638]
[1728031041424,0.41321799,61752.0,61751.0,0.001638]
[1728031041505,0.41421799,61752.0,61751.0,0.002638]
[1728031041727,0.41321799,61752.0,61751.0,0.002638]
[1728031042178,0.41721799,61752.0,61751.0,0.003638]
[1728031042839,0.41720163,61752.0,61751.0,0.003638]
[1728031043282,0.41719232,61752.0,61751.0,0.003638]
[1728031043502,0.344538,61752.0,61751.0,0.003638]
[1728031043729,0.3699303,61752.0,61751.0,0.003638]
[1728031044170,0.41836364,61752.0,61751.0,0.003638]
[1728031044398,0.41736364,61752.0,61751.0,0.002638]
[1728031044644,0.42836364,61752.0,61751.0,0.003638]
[1728031044858,0.42436364,61752.0,61751.0,0.002638]
[1728031045072,0.42836364,61752.0,61751.0,0.003638]
[1728031046191,0.45258462,61752.0,61751.0,0.003638]
[1728031046649,0.3799303,61752.0,61751.0,0.003638]
[1728031047122,0.2179923,61752.0,61751.0,0.165578]
[1728031047376,0.1926,61752.0,61751.0,0.17167192]
[1728031048071,0.1926,61752.0,61751.0,0.00973192]
[1728031048305,0.1926,61752.0,61751.0,0.17167192]
[1728031048790,0.1886,61752.0,61751.0,0.17067192]
[1728031049280,0.1916,61752.0,61751.0,0.17067192]
[1728031049508,0.1806,61752.0,61751.0,0.16967192]
[1728031049734,0.1856,61752.0,61751.0,0.16967192]
[1728031050641,0.21098869,61752.0,61751.0,0.16967192]
[1728031053797,0.21098869,61752.0,61751.0,0.00773192]
[1728031054505,0.1856,61752.0,61751.0,0.00773192]
[1728031055195,0.1856,61752.0,61751.0,0.16967192]
[1728031056097,0.1075,61752.0,61751.0,0.16967192]
[1728031056230,0.008,61752.0,61751.0,0.16967192]
[1728031057099,0.008,61752.0,61751.0,0.19267192]
[1728031057515,0.008,61752.0,61751.0,0.27537192]
[1728031057710,0.00792854,61752.0,61751.0,0.27537192]
[1728031057908,0.00292854,61752.0,61751.0,0.27537192]
[1728031058116,0.000819,61753.0,61752.0,0.184938]
[1728031058545,0.000819,61753.0,61752.0,0.1910281]
[1728031059964,0.000819,61753.0,61752.0,0.1950281]
[1728031060180,0.000819,61753.0,61752.0,0.2000281]
[1728031060609,0.000819,61753.0,61752.0,0.1770281]
[1728031061525,0.000819,61753.0,61752.0,0.1720281]
[1728031061960,0.000819,61753.0,61752.0,0.1750281]
[1728031062436,0.000819,61753.0,61752.0,0.0090901]
[1728031062850,0.000819,61753.0,61752.0,0.1710281]
[1728031062851,0.003819,61753.0,61752.0,0.1710281]
[1728031063076,0.003819,61753.0,61752.0,0.0060901]
[1728031063310,0.003819,61753.0,61752.0,0.1680281]
[1728031063532,0.004819,61753.0,61752.0,0.1680281]
[1728031065008,0.03020697,61753.0,61752.0,0.1680281]
[1728031067288,0.02920697,61753.0,61752.0,0.1680281]
[1728031067484,0.03020697,61753.0,61752.0,0.1680281]
[1728031067777,0.02720697,61753.0,61752.0,0.1680281]
[1728031068716,0.02620697,61753.0,61752.0,0.1680281]
[1728031068946,0.02920697,61753.0,61752.0,0.1680281]
[1728031069432,0.02620697,61753.0,61752.0,0.1680281]
[1728031069659,0.02620697,61753.0,61752.0,0.1700281]
[1728031069885,0.00688367,61753.0,61752.0,0.1700281]
[1728031070146,0.00568498,61754.0,61752.0,0.0080901]
[1728031070384,0.00568498,61754.0,61753.0,0.161935]
[1728031070855,0.00568498,61754.0,61753.0,0.16836365]
[1728031071982,0.00568498,61754.0,61753.0,0.16936365]
[1728031073643,0.03107222,61754.0,61753.0,0.19236365]
[1728031074080,0.00568498,61754.0,61753.0,0.19236365]
[1728031074524,0.00568498,61754.0,61753.0,0.19356079]
[1728031075629,0.00568498,61754.0,61753.0,0.19236365]
[1728031077414,0.05570483,61756.0,61755.0,0.18493]
[1728031077415,0.04174656,61756.0,61755.0,0.18493]
[1728031077891,0.04174656,61756.0,61755.0,0.19135495]
[1728031079210,0.02547773,61756.0,61755.0,0.19635495]
[1728031079639,0.02547773,61756.0,61755.0,0.20235495]
[1728031080362,0.00917265,61756.0,61755.0,0.20235495]
[1728031080607,0.00917265,61756.0,61755.0,0.54074166]
[1728031081493,0.00917265,61756.0,61755.0,0.53574166]
[1728031081971,0.00917265,61756.0,61755.0,0.54174166]
[1728031082682,0.00917265,61756.0,61755.0,0.53574166]
[1728031082938,0.00917265,61756.0,61755.0,0.54074166]
[1728031083414,0.00917265,61756.0,61755.0,0.53574166]
[1728031083868,0.00917265,61756.0,61755.0,0.54174166]
[1728031084306,0.00917265,61756.0,61755.0,0.54374166]
[1728031084521,0.00917265,61756.0,61755.0,0.64864166]
[1728031086419,0.00917265,61756.0,61755.0,0.64264166]
[1728031086648,0.00917265,61756.0,61755.0,0.65664166]
[1728031086863,0.00917265,61756.0,61755.0,0.65064166]
[1728031087814,0.00917265,61756.0,61755.0,0.64864166]
[1728031088033,0.00917265,61756.0,61755.0,0.835733]
[1728031088925,0.00917265,61756.0,61755.0,0.841371]
[1728031089415,0.00999165,61756.0,61755.0,0.65027966]
[1728031089659,0.00999165,61756.0,61755.0,0.837371]
[1728031090129,0.00799165,61756.0,61755.0,0.837371]
[1728031090356,0.00799165,61756.0,61755.0,0.851371]
[1728031091515,0.00799165,61756.0,61755.0,0.37319295]
[1728031091695,0.00799165,61756.0,61755.0,0.29799295]
[1728031092177,0.00799165,61756.0,61755.0,0.300671]
[1728031093070,0.00799165,61756.0,61755.0,0.323671]
[1728031093715,0.00774669,61756.0,61755.0,0.323671]
[1728031096193,0.04568505,61758.0,61757.0,0.261924]
[1728031096437,0.04568505,61758.0,61757.0,0.284924]
[1728031096661,0.04568505,61758.0,61757.0,0.29401221]
[1728031097364,0.04568505,61758.0,61757.0,0.30801221]
[1728031098303,0.04568505,61758.0,61757.0,0.32201221]
[1728031098870,0.04568505,61758.0,61757.0,0.22656227]
[1728031100207,0.04568505,61758.0,61757.0,0.20356227]
[1728031100680,0.04568505,61758.0,61757.0,0.18956227]
[1728031100918,0.04568505,61758.0,61757.0,0.03463827]
[1728031101153,0.21928505,61758.0,61757.0,0.03463827]
[1728031101375,0.21928505,61758.0,61757.0,0.02063827]
[1728031101610,0.21928505,61758.0,61757.0,0.02663827]
[1728031101843,0.6653177,61758.0,61757.0,0.02663827]
[1728031102044,0.56829839,61758.0,61757.0,0.02063827]
[1728031102269,0.68957165,61758.0,61757.0,0.007]
[1728031102489,0.161927,61756.0,61755.0,0.001638]
[1728031102912,0.21043322,61756.0,61755.0,0.001638]
[1728031103391,0.04850622,61757.0,61755.0,0.01528459]
[1728031103626,0.27161027,61758.0,61755.0,0.001638]
[1728031103839,0.27161027,61758.0,61756.0,0.01370357]
[1728031104076,0.161924,61757.0,61756.0,0.01370357]
[1728031104767,0.21043022,61757.0,61756.0,0.01370357]
[1728031104993,0.61670838,61758.0,61755.0,0.003638]
[1728031105208,0.21042747,61756.0,61755.0,0.002638]
[1728031105648,0.21042747,61756.0,61755.0,0.001638]
[1728031105861,0.38332747,61756.0,61755.0,0.001638]
[1728031106088,0.334827,61756.0,61755.0,0.001638]
[1728031106303,0.334827,61756.0,61755.0,0.002638]
[1728031106756,0.336827,61756.0,61755.0,0.003638]
[1728031106985,0.336827,61756.0,61755.0,0.002638]
[1728031107479,0.40958633,61756.0,61755.0,0.002638]
[1728031108412,0.40958633,61756.0,61755.0,0.003638]
[1728031110266,0.336827,61756.0,61755.0,0.003638]
[1728031111180,0.38530652,61756.0,61755.0,0.01734376]
[1728031111417,0.38530652,61756.0,61755.0,0.003638]
[1728031111418,0.43383944,61756.0,61755.0,0.003638]
[1728031111870,0.336827,61756.0,61755.0,0.003638]
[1728031112419,0.40953792,61756.0,61755.0,0.003638]
[1728031112647,0.336827,61756.0,61755.0,0.003638]
[1728031113354,0.38529635,61756.0,61755.0,0.003638]
[1728031113947,0.38529635,61756.0,61755.0,0.0117908]
[1728031114180,0.38529635,61756.0,61755.0,0.003638]
[1728031115693,0.336827,61756.0,61755.0,0.003638]
[1728031116609,0.36221619,61756.0,61755.0,0.01734453]
[1728031116820,0.36221619,61756.0,61755.0,0.003638]
[1728031117031,0.336827,61756.0,61755.0,0.01734453]
[1728031117242,0.336827,61756.0,61755.0,0.003638]
[1728031117453,0.336827,61756.0,61755.0,0.01734453]
[1728031117586,0.336827,61756.0,61755.0,0.003638]
[1728031117794,0.1749,61756.0,61755.0,0.01734453]
[1728031118009,0.336827,61756.0,61755.0,0.01734453]
[1728031118539,0.336827,61756.0,61755.0,0.003638]
[1728031118740,0.1749,61756.0,61755.0,0.01183894]
[1728031118947,0.336827,61756.0,61755.0,0.01734453]
[1728031119601,0.45967508,61756.0,61755.0,0.01734453]
[1728031120022,0.48506391,61756.0,61755.0,0.01734453]
[1728031120875,0.12368883,61756.0,61755.0,0.01734453]
[1728031121099,0.12368883,61756.0,61755.0,0.17927453]
[1728031121100,0.002,61756.0,61755.0,0.17927453]
[1728031121517,0.02435431,61758.0,61757.0,0.161924]
[1728031121931,0.02435431,61758.0,61757.0,0.17561513]
[1728031123203,0.00670774,61758.0,61757.0,0.17561513]
[1728031123899,0.00670774,61758.0,61757.0,0.20161513]
[1728031124133,0.07694477,61760.0,61759.0,0.161919]
[1728031124758,0.07694477,61760.0,61759.0,0.17560182]
[1728031125428,0.24924477,61760.0,61759.0,0.01568282]
[1728031125855,0.41116177,61760.0,61759.0,0.01368282]
[1728031126036,0.41116177,61760.0,61759.0,0.02068282]
[1728031126242,0.41116177,61760.0,61759.0,0.009]
[1728031126662,0.161927,61756.0,61755.0,0.001638]
[1728031127230,0.161927,61756.0,61755.0,0.01532356]
[1728031128644,0.161927,61756.0,61755.0,0.001638]
[1728031128864,0.18731482,61756.0,61755.0,0.002638]
[1728031129101,0.50110167,61756.0,61755.0,0.002638]
[1728031129334,0.438727,61756.0,61755.0,0.001638]
[1728031129792,0.436727,61756.0,61755.0,0.001638]
[1728031130025,0.438727,61756.0,61755.0,0.001638]
[1728031130267,0.436727,61756.0,61755.0,0.001638]
[1728031131585,0.55999255,61756.0,61755.0,0.001638]
[1728031131612,0.55999255,61756.0,61755.0,0.002638]
[1728031131852,0.55799255,61756.0,61755.0,0.003638]
[1728031132325,0.58338369,61756.0,61755.0,0.002638]
[1728031132819,0.58338369,61756.0,61755.0,0.003638]
[1728031133296,0.46211814,61756.0,61755.0,0.003638]
[1728031133536,0.46411814,61756.0,61755.0,0.003638]
[1728031133769,0.46211814,61756.0,61755.0,0.003638]
[1728031134270,0.46411814,61756.0,61755.0,0.003638]
[1728031134501,0.46211814,61756.0,61755.0,0.003638]
[1728031135467,0.57848452,61756.0,61755.0,0.003638]
[1728031135698,0.58048452,61756.0,61755.0,0.01181969]
[1728031135946,0.72591537,61756.0,61755.0,0.01181969]
[1728031136415,0.438727,61756.0,61755.0,0.01181969]
[1728031136652,0.000819,61758.0,61752.0,0.001638]
[1728031136653,0.331235,61753.0,61752.0,0.001638]
[1728031136895,0.51836668,61753.0,61752.0,0.001638]
[1728031137389,0.66381805,61753.0,61752.0,0.001638]
[1728031137628,0.1673,61737.0,61715.0,0.0752]
[1728031137929,0.1673,61737.0,61725.0,0.40551647]
[1728031137930,0.34911668,61734.0,61725.0,0.40551647]
[1728031138160,0.34911668,61734.0,61725.0,0.24350847]
[1728031138387,0.161993,61731.0,61726.0,0.162003]
[1728031138631,0.161994,61731.0,61725.0,0.24350847]
[1728031138882,0.37246029,61733.0,61725.0,0.24350847]
[1728031138883,0.37246029,61733.0,61727.0,0.162003]
[1728031139145,0.161994,61731.0,61727.0,0.162003]
[1728031140490,0.04847329,61735.0,61732.0,0.161989]
[1728031140728,0.04847329,61735.0,61725.0,0.24350847]
[1728031140729,0.04847329,61740.0,61738.0,0.161974]
[1728031140969,0.001,61731.0,61730.0,0.161995]
[1728031141189,0.04847329,61742.0,61726.0,0.1012]
[1728031141416,0.04847329,61741.0,61738.0,0.323948]
[1728031141638,0.04847329,61741.0,61729.0,0.18713168]
[1728031141639,0.24350847,61744.0,61729.0,0.18713168]
[1728031141859,0.04847329,61749.0,61745.0,0.161954]
[1728031142105,0.161947,61749.0,61733.0,0.21013168]
[1728031142343,0.161947,61749.0,61737.0,0.32395]
[1728031142344,0.20264432,61749.0,61737.0,0.32395]
[1728031142571,0.01,61742.0,61741.0,0.161966]
[1728031143089,0.01,61742.0,61732.0,0.24350847]
[1728031143312,0.01,61742.0,61735.0,0.323965]
[1728031143313,0.161968,61741.0,61735.0,0.323965]
[1728031143557,0.161974,61739.0,61735.0,0.161981]
[1728031143793,0.01,61742.0,61726.0,0.0782]
[1728031144046,0.18713168,61735.0,61730.0,0.161995]
[1728031144293,0.18713168,61735.0,61727.0,0.162002]
[1728031144294,0.161993,61731.0,61727.0,0.162002]
[1728031144543,0.161993,61731.0,61724.0,0.324022]
[1728031144544,0.18713168,61735.0,61724.0,0.324022]
[1728031144545,0.23561832,61735.0,61724.0,0.324022]
[1728031144793,0.323979,61733.0,61724.0,0.324022]
[1728031145039,0.18713168,61731.0,61725.0,0.24350847]
[1728031145280,0.18713168,61727.0,61722.0,0.001638]
[1728031145499,0.0902,61730.0,61724.0,0.16201]
[1728031145725,0.323997,61729.0,61724.0,0.16201]
[1728031145944,0.414192,61730.0,61724.0,0.16201]
[1728031145945,0.161996,61730.0,61726.0,0.162004]
[1728031146387,0.04848664,61732.0,61724.0,0.324021]
[1728031146674,0.162005,61727.0,61722.0,0.163653]
[1728031146934,0.162002,61728.0,61724.0,0.16201]
[1728031147176,0.07388641,61731.0,61725.0,0.56752447]
[1728031147409,0.006,61730.0,61727.0,0.162002]
[1728031147629,0.006,61730.0,61725.0,0.324013]
[1728031147630,0.170996,61730.0,61726.0,0.162006]
[1728031147858,0.164996,61730.0,61726.0,0.162006]
[1728031148121,0.140856,61730.0,61726.0,0.162006]
[1728031148360,0.004,61728.0,61726.0,0.162006]
[1728031148837,0.004,61728.0,61722.0,0.001638]
[1728031148838,0.004,61728.0,61725.0,0.162008]
[1728031149074,0.004,61728.0,61725.0,0.324016]
[1728031149313,0.004,61728.0,61725.0,0.486024]
[1728031149530,0.004,61728.0,61726.0,0.162003]
[1728031150220,0.161995,61730.0,61726.0,0.162003]
[1728031150738,0.139005,61730.0,61726.0,0.163003]
[1728031150972,0.001,61730.0,61728.0,0.161999]
[1728031151209,0.02539977,61731.0,61730.0,0.161995]
[1728031151450,0.00896977,61731.0,61730.0,0.161995]
[1728031151681,0.161989,61733.0,61728.0,0.161998]
[1728031151913,0.16199,61732.0,61728.0,0.161998]
[1728031152152,0.002,61730.0,61729.0,0.161997]
[1728031152388,0.002,61730.0,61727.0,0.162001]
[1728031152834,0.002,61730.0,61729.0,0.161998]
[1728031153064,0.0273977,61730.0,61729.0,0.161998]
[1728031153316,0.0273977,61730.0,61728.0,0.162]
[1728031153543,0.0263977,61730.0,61728.0,0.162]
[1728031153772,0.0253977,61730.0,61729.0,0.161998]
[1728031154012,0.0013077,61730.0,61729.0,0.162998]
[1728031154240,0.161994,61731.0,61727.0,0.162002]
[1728031154708,0.161994,61731.0,61728.0,0.002]
[1728031154923,0.161994,61731.0,61728.0,0.001]
[1728031155147,0.161994,61731.0,61727.0,0.162002]
[1728031155370,0.162994,61731.0,61729.0,0.001]
[1728031155614,0.161986,61734.0,61730.0,0.161995]
[1728031155833,0.161992,61732.0,61729.0,0.001]
[1728031156301,0.161993,61731.0,61729.0,0.001]
[1728031156522,0.37238054,61739.0,61727.0,0.324003]
[1728031156523,0.04843554,61739.0,61727.0,0.324003]
[1728031156741,0.04843554,61739.0,61726.0,0.324011]
[1728031157019,0.138791,61732.0,61728.0,0.161999]
[1728031157245,0.002,61731.0,61728.0,0.161999]
[1728031157705,0.161995,61731.0,61727.0,0.162003]
[1728031158172,0.323964,61736.0,61725.0,0.24350847]
[1728031158425,0.323975,61733.0,61726.0,0.324008]
[1728031158658,0.161993,61731.0,61727.0,0.162003]
[1728031158904,0.002,61731.0,61728.0,0.162]
[1728031159123,0.163993,61731.0,61728.0,0.162]
[1728031159379,0.163993,61731.0,61726.0,0.324008]
[1728031159380,0.002,61731.0,61727.0,0.162001]
[1728031159612,0.002,61731.0,61726.0,0.324008]
[1728031159827,0.002,61731.0,61728.0,0.162]
[1728031160048,0.161991,61732.0,61728.0,0.162]
[1728031160286,0.001,61731.0,61728.0,0.162]
[1728031160510,0.001,61731.0,61728.0,0.161998]
[1728031160744,0.161991,61732.0,61728.0,0.161998]
[1728031161031,0.164988,61733.0,61729.0,0.161997]
[1728031161255,0.323978,61733.0,61726.0,0.324008]
[1728031161493,0.323978,61733.0,61727.0,0.324006]
[1728031161494,0.001,61731.0,61727.0,0.324006]
[1728031161711,0.002,61731.0,61725.0,0.324015]
[1728031161930,0.162993,61731.0,61726.0,0.324009]
[1728031162156,0.162993,61731.0,61728.0,0.162]
[1728031162157,0.161993,61731.0,61728.0,0.162]
[1728031162407,0.161993,61731.0,61727.0,0.162003]
[1728031162627,0.161993,61731.0,61724.0,0.001638]
[1728031162628,0.162001,61728.0,61724.0,0.001638]
[1728031162849,0.161999,61729.0,61725.0,0.162008]
[1728031163076,0.162008,61725.0,61724.0,0.001638]
[1728031164251,0.162008,61725.0,61724.0,0.006638]
[1728031164485,0.35013968,61725.0,61724.0,0.011638]
[1728031165213,0.34913968,61725.0,61724.0,0.006638]
[1728031165454,0.34913968,61725.0,61724.0,0.001638]
[1728031165688,0.34913968,61725.0,61724.0,0.002638]
[1728031165689,0.35413968,61725.0,61724.0,0.002638]
[1728031166152,0.37954167,61725.0,61724.0,0.002638]
[1728031166615,0.38454167,61725.0,61724.0,0.002638]
[1728031167982,0.35913968,61725.0,61724.0,0.002638]
[1728031168463,0.60738525,61725.0,61724.0,0.002638]
[1728031168735,0.68828525,61725.0,61724.0,0.002638]
[1728031168983,0.5869464,61725.0,61724.0,0.002638]
[1728031170205,0.6869464,61725.0,61724.0,0.01095886]
[1728031170459,0.64053968,61725.0,61724.0,0.01095886]
[1728031171184,0.66594249,61725.0,61724.0,0.01095886]
[1728031171412,0.437314,61723.0,61722.0,0.001638]
[1728031171630,0.58269022,61723.0,61722.0,0.001638]
[1728031171846,0.437314,61723.0,61722.0,0.001638]
[1728031172299,0.58267979,61723.0,61722.0,0.001638]
[1728031172760,0.59667979,61723.0,61722.0,0.001638]
[1728031172992,0.451314,61723.0,61722.0,0.001638]
[1728031173209,0.449314,61723.0,61722.0,0.001638]
[1728031174089,0.447314,61723.0,61722.0,0.001638]
[1728031174319,0.449314,61723.0,61722.0,0.001638]
[1728031174539,0.62450071,61723.0,61722.0,0.001638]
[1728031174753,0.62450071,61723.0,61722.0,0.00958604]
[1728031175453,0.486721,61723.0,61722.0,0.00958604]
[1728031176623,0.488721,61723.0,61722.0,0.00958604]
[1728031177080,0.488721,61723.0,61711.0,0.24350847]